[Event "Late-Titled-Tuesday-Blitz-April-23-2024"]
[Site "Chess.com"]
[Date "2024.04.23"]
[Round "3"]
[White "samidescalona2002"]
[Black "MathiasWomacka"]
[Result "1-0"]
[WhiteElo "2766"]
[BlackElo "2518"]
[TimeControl "180+1"]
[EndTime "14:30:40 PDT"]
[Termination "samidescalona2002 won on time"]

1. d4 {[%clk 0:03:00.9]} 1... Nf6 {[%clk 0:02:57.3]} 2. Nf3 {[%clk 0:03:00.8]}
2... e6 {[%clk 0:02:56.1]} 3. c4 {[%clk 0:03:00.8]} 3... Bb4+ {[%clk 0:02:54.5]}
4. Bd2 {[%clk 0:03:00.1]} 4... Qe7 {[%clk 0:02:54.3]} 5. g3 {[%clk 0:03:00.1]}
5... Bxd2+ {[%clk 0:02:52.8]} 6. Nbxd2 {[%clk 0:02:58.9]} 6... d6 {[%clk
0:02:52.2]} 7. Bg2 {[%clk 0:02:59.1]} 7... e5 {[%clk 0:02:52.2]} 8. e3 {[%clk
0:02:58]} 8... O-O {[%clk 0:02:51.6]} 9. O-O {[%clk 0:02:57.8]} 9... Nc6 {[%clk
0:02:45.8]} 10. Rc1 {[%clk 0:02:57]} 10... Bg4 {[%clk 0:02:37.7]} 11. h3 {[%clk
0:02:55.2]} 11... Bh5 {[%clk 0:02:37.5]} 12. Qb3 {[%clk 0:02:52.2]} 12... Rab8
{[%clk 0:02:10.7]} 13. c5 {[%clk 0:02:45.2]} 13... dxc5 {[%clk 0:01:44.2]} 14.
dxe5 {[%clk 0:02:09.7]} 14... Nxe5 {[%clk 0:01:37.5]} 15. Nxe5 {[%clk
0:02:09.7]} 15... Qxe5 {[%clk 0:01:35.6]} 16. g4 {[%clk 0:02:10.3]} 16... Bxg4
{[%clk 0:01:07.7]} 17. hxg4 {[%clk 0:02:10.2]} 17... Nxg4 {[%clk 0:01:08.2]} 18.
Nf3 {[%clk 0:02:09.1]} 18... Qh5 {[%clk 0:01:07.7]} 19. Rfd1 {[%clk 0:02:01.2]}
19... b6 {[%clk 0:01:05.6]} 20. Qd5 {[%clk 0:01:55.1]} 20... Qh6 {[%clk
0:00:53.3]} 21. Qg5 {[%clk 0:01:52.4]} 21... Qxg5 {[%clk 0:00:43.1]} 22. Nxg5
{[%clk 0:01:52.2]} 22... h6 {[%clk 0:00:35.3]} 23. Ne4 {[%clk 0:01:36.6]} 23...
Rfd8 {[%clk 0:00:34.7]} 24. Nc3 {[%clk 0:01:32.6]} 24... Ne5 {[%clk 0:00:30.2]}
25. Nd5 {[%clk 0:01:29.4]} 25... Kf8 {[%clk 0:00:24.1]} 26. Nxc7 {[%clk
0:01:27.8]} 26... Nd3 {[%clk 0:00:23.9]} 27. Rb1 {[%clk 0:01:19.6]} 27... Rd7
{[%clk 0:00:19.1]} 28. Nd5 {[%clk 0:01:12.6]} 28... Ne5 {[%clk 0:00:19]} 29. f4
{[%clk 0:01:07.4]} 29... Nc4 {[%clk 0:00:17.8]} 30. b3 {[%clk 0:01:06.5]} 30...
Na5 {[%clk 0:00:16.9]} 31. Nc3 {[%clk 0:01:00.1]} 31... Rbd8 {[%clk 0:00:16.3]}
32. Rxd7 {[%clk 0:00:46]} 32... Rxd7 {[%clk 0:00:17.2]} 33. Rd1 {[%clk
0:00:45.3]} 33... Rxd1+ {[%clk 0:00:16.5]} 34. Nxd1 {[%clk 0:00:46.2]} 34... Ke7
{[%clk 0:00:16.5]} 35. Nc3 {[%clk 0:00:44.8]} 35... g5 {[%clk 0:00:14.1]} 36.
Nb5 {[%clk 0:00:44.5]} 36... a6 {[%clk 0:00:13.8]} 37. Nc7 {[%clk 0:00:44.4]}
37... gxf4 {[%clk 0:00:13.2]} 38. exf4 {[%clk 0:00:44]} 38... Kd6 {[%clk
0:00:13.1]} 39. Nxa6 {[%clk 0:00:43.2]} 39... c4 {[%clk 0:00:08.6]} 40. bxc4
{[%clk 0:00:33.7]} 40... Nxc4 {[%clk 0:00:08.2]} 41. Kf2 {[%clk 0:00:33.5]}
41... Nb2 {[%clk 0:00:08]} 42. Ke3 {[%clk 0:00:30.6]} 42... h5 {[%clk
0:00:08.4]} 43. Nb4 {[%clk 0:00:28.9]} 43... h4 {[%clk 0:00:08.6]} 44. Nd3
{[%clk 0:00:27.5]} 44... Nc4+ {[%clk 0:00:07.8]} 45. Kd4 {[%clk 0:00:28.2]}
45... Na3 {[%clk 0:00:06.9]} 46. Ne5 {[%clk 0:00:27.6]} 46... Nc2+ {[%clk
0:00:06.7]} 47. Ke4 {[%clk 0:00:25.1]} 47... Nb4 {[%clk 0:00:05.5]} 48. a4
{[%clk 0:00:24.2]} 48... f6 {[%clk 0:00:05]} 49. Ng4 {[%clk 0:00:19.2]} 49...
Ke6 {[%clk 0:00:04.3]} 50. Ne3 {[%clk 0:00:19.4]} 50... Na2 {[%clk 0:00:03.3]}
51. Bh3+ {[%clk 0:00:20.3]} 51... Kd6 {[%clk 0:00:02.2]} 52. Kd4 {[%clk
0:00:21.2]} 52... Nb4 {[%clk 0:00:01.5]} 53. Nc4+ {[%clk 0:00:20.7]} 53... Kc6
{[%clk 0:00:01.5]} 54. Bg2+ {[%clk 0:00:21.4]} 54... Kc7 {[%clk 0:00:01.8]} 55.
Ne3 {[%clk 0:00:20.4]} 55... Na2 {[%clk 0:00:01.5]} 56. Nd5+ {[%clk 0:00:20.2]}
56... Kd6 {[%clk 0:00:02.4]} 57. Nxf6 {[%clk 0:00:20.5]} 57... Nc1 {[%clk
0:00:02.6]} 58. Ne4+ {[%clk 0:00:20.5]} 58... Ke6 {[%clk 0:00:01.8]} 59. Bh3+
{[%clk 0:00:19.3]} 59... Kf7 {[%clk 0:00:01.5]} 60. Ke5 {[%clk 0:00:15.2]} 60...
Nb3 {[%clk 0:00:02.4]} 61. Kd6 {[%clk 0:00:11.5]} 61... Nd4 {[%clk 0:00:01.2]}
62. Ke5 {[%clk 0:00:08.1]} 1-0

[Event "Late-Titled-Tuesday-Blitz-April-23-2024"]
[Site "Chess.com"]
[Date "2024.04.23"]
[Round "3"]
[White "Smiechu"]
[Black "andrew-blr"]
[Result "0-1"]
[WhiteElo "2440"]
[BlackElo "2618"]
[TimeControl "180+1"]
[EndTime "14:30:42 PDT"]
[Termination "andrew-blr won by checkmate"]

1. e4 {[%clk 0:03:00.9]} 1... c5 {[%clk 0:02:59.7]} 2. Nf3 {[%clk 0:03:00.3]}
2... e6 {[%clk 0:02:59.9]} 3. d4 {[%clk 0:03:00.2]} 3... cxd4 {[%clk 0:03:00]}
4. Nxd4 {[%clk 0:03:01.1]} 4... Bc5 {[%clk 0:03:00.4]} 5. Nb3 {[%clk 0:03:00.5]}
5... Bb6 {[%clk 0:03:00.4]} 6. Nc3 {[%clk 0:02:57.4]} 6... Ne7 {[%clk
0:03:00.3]} 7. Qe2 {[%clk 0:02:57.2]} 7... O-O {[%clk 0:02:59.4]} 8. Be3 {[%clk
0:02:57.2]} 8... Bxe3 {[%clk 0:02:58.9]} 9. Qxe3 {[%clk 0:02:57]} 9... f5 {[%clk
0:02:59.6]} 10. O-O-O {[%clk 0:02:53.6]} 10... Nbc6 {[%clk 0:02:59.6]} 11. Bd3
{[%clk 0:02:44]} 11... fxe4 {[%clk 0:02:56.9]} 12. Bxe4 {[%clk 0:02:40.7]} 12...
d5 {[%clk 0:02:55.8]} 13. Qh3 {[%clk 0:02:30.4]} 13... Nf5 {[%clk 0:02:52.9]}
14. g4 {[%clk 0:02:01.9]} 14... Qg5+ {[%clk 0:02:34.8]} 15. Kb1 {[%clk
0:02:01.3]} 15... dxe4 {[%clk 0:02:34.5]} 16. gxf5 {[%clk 0:01:57.8]} 16... exf5
{[%clk 0:02:23.6]} 17. Rhg1 {[%clk 0:01:56.2]} 17... Qe7 {[%clk 0:02:20.3]} 18.
Nd5 {[%clk 0:01:54.8]} 18... Qf7 {[%clk 0:02:20.3]} 19. f4 {[%clk 0:01:38.9]}
19... exf3 {[%clk 0:02:14.5]} 20. Qxf3 {[%clk 0:01:38.4]} 20... Be6 {[%clk
0:02:13.5]} 21. Nf4 {[%clk 0:01:36.3]} 21... Bxb3 {[%clk 0:02:12.4]} 22. axb3
{[%clk 0:01:35.9]} 22... Rad8 {[%clk 0:02:08.8]} 23. Nh5 {[%clk 0:01:30.5]}
23... Rxd1+ {[%clk 0:02:06.8]} 24. Qxd1 {[%clk 0:01:30.5]} 24... g6 {[%clk
0:02:06.4]} 25. Nf4 {[%clk 0:01:30.3]} 25... Rd8 {[%clk 0:01:58.8]} 26. Qf1
{[%clk 0:01:24.8]} 26... Ne5 {[%clk 0:01:53]} 27. h4 {[%clk 0:01:19.9]} 27...
Ng4 {[%clk 0:01:52.3]} 28. h5 {[%clk 0:01:14.5]} 28... g5 {[%clk 0:01:13.6]} 29.
Nd3 {[%clk 0:01:14.2]} 29... Rf8 {[%clk 0:01:12.1]} 30. Qf3 {[%clk 0:01:10.8]}
30... Qxh5 {[%clk 0:01:09.4]} 31. Ne5 {[%clk 0:00:59.3]} 31... Qh2 {[%clk
0:01:02.4]} 32. Qd5+ {[%clk 0:00:58.7]} 32... Kh8 {[%clk 0:00:56.4]} 33. Ng6+
{[%clk 0:00:52.9]} 33... Kg7 {[%clk 0:00:51.4]} 34. Rh1 {[%clk 0:00:45.2]} 34...
Qxh1+ {[%clk 0:00:49.6]} 35. Qxh1 {[%clk 0:00:44.4]} 35... Kxg6 {[%clk
0:00:46.8]} 36. Qxb7 {[%clk 0:00:43.8]} 36... Rf7 {[%clk 0:00:47.1]} 37. Qc6+
{[%clk 0:00:40.2]} 37... Nf6 {[%clk 0:00:46.8]} 38. c4 {[%clk 0:00:39.6]} 38...
g4 {[%clk 0:00:41.8]} 39. c5 {[%clk 0:00:39.1]} 39... h5 {[%clk 0:00:42.1]} 40.
Qd6 {[%clk 0:00:33.3]} 40... h4 {[%clk 0:00:40.7]} 41. c6 {[%clk 0:00:33.6]}
41... h3 {[%clk 0:00:37.3]} 42. c7 {[%clk 0:00:33.5]} 42... Rxc7 {[%clk
0:00:37.4]} 43. Qxc7 {[%clk 0:00:33.6]} 43... Ne4 {[%clk 0:00:36.6]} 44. Qxa7
{[%clk 0:00:32.8]} 44... g3 {[%clk 0:00:34.3]} 45. Qb6+ {[%clk 0:00:23.7]} 45...
Kh5 {[%clk 0:00:30.6]} 46. Qe6 {[%clk 0:00:20.1]} 46... Kg4 {[%clk 0:00:24.2]}
47. Qg6+ {[%clk 0:00:20.1]} 47... Ng5 {[%clk 0:00:24]} 48. Qd6 {[%clk
0:00:17.1]} 48... h2 {[%clk 0:00:22.3]} 49. Qd4+ {[%clk 0:00:17]} 49... Ne4
{[%clk 0:00:19.9]} 50. Qd1+ {[%clk 0:00:15.8]} 50... Kh3 {[%clk 0:00:19.2]} 51.
Qf1+ {[%clk 0:00:14.7]} 51... Kg4 {[%clk 0:00:18.8]} 52. Qe2+ {[%clk 0:00:14.1]}
52... Kh4 {[%clk 0:00:18.1]} 53. Qf1 {[%clk 0:00:13.5]} 53... Nf2 {[%clk
0:00:17.3]} 54. Qc4+ {[%clk 0:00:13.3]} 54... Kh3 {[%clk 0:00:16.8]} 55. Qf1+
{[%clk 0:00:11.8]} 55... g2 {[%clk 0:00:15.4]} 56. Qxf2 {[%clk 0:00:11.4]} 56...
g1=Q+ {[%clk 0:00:15.7]} 57. Qxg1 {[%clk 0:00:11.2]} 57... hxg1=Q+ {[%clk
0:00:16.6]} 58. Ka2 {[%clk 0:00:12.1]} 58... Qb6 {[%clk 0:00:16]} 59. b4 {[%clk
0:00:11.5]} 59... f4 {[%clk 0:00:16.9]} 60. Ka3 {[%clk 0:00:11.4]} 60... f3
{[%clk 0:00:17.4]} 61. b3 {[%clk 0:00:11.3]} 61... f2 {[%clk 0:00:17.9]} 62. Ka4
{[%clk 0:00:11.2]} 62... f1=Q {[%clk 0:00:17.5]} 63. b5 {[%clk 0:00:11.6]} 63...
Qfxb5+ {[%clk 0:00:16.6]} 64. Ka3 {[%clk 0:00:12.3]} 64... Qxb3# {[%clk
0:00:17.4]} 0-1

[Event "Late-Titled-Tuesday-Blitz-April-23-2024"]
[Site "Chess.com"]
[Date "2024.04.23"]
[Round "3"]
[White "Pig-filth"]
[Black "FuenfgegenWilly"]
[Result "1/2-1/2"]
[WhiteElo "2245"]
[BlackElo "2465"]
[TimeControl "180+1"]
[EndTime "14:30:42 PDT"]
[Termination "Game drawn by repetition"]

1. d4 {[%clk 0:02:58.1]} 1... d5 {[%clk 0:02:59.9]} 2. Bg5 {[%clk 0:02:58.5]}
2... f6 {[%clk 0:02:57.3]} 3. Bd2 {[%clk 0:02:58.3]} 3... e5 {[%clk 0:02:56.6]}
4. e4 {[%clk 0:02:49.9]} 4... exd4 {[%clk 0:02:35.7]} 5. Qh5+ {[%clk 0:02:42.6]}
5... g6 {[%clk 0:02:34.7]} 6. Qxd5 {[%clk 0:02:39.6]} 6... Qxd5 {[%clk
0:02:34.5]} 7. exd5 {[%clk 0:02:40.3]} 7... Bc5 {[%clk 0:02:34.2]} 8. Nf3 {[%clk
0:02:31]} 8... Ne7 {[%clk 0:02:31.9]} 9. Bc4 {[%clk 0:02:27.2]} 9... Bg4 {[%clk
0:02:23.8]} 10. Bh6 {[%clk 0:02:07.9]} 10... Nf5 {[%clk 0:02:16]} 11. Bd2 {[%clk
0:02:04.9]} 11... Bxf3 {[%clk 0:02:12]} 12. gxf3 {[%clk 0:02:05.8]} 12... Nd7
{[%clk 0:02:12.7]} 13. f4 {[%clk 0:02:03.7]} 13... Nb6 {[%clk 0:02:12.9]} 14.
Bb3 {[%clk 0:02:04]} 14... a5 {[%clk 0:02:12.3]} 15. a4 {[%clk 0:02:02.1]} 15...
d3 {[%clk 0:01:58.5]} 16. Bc3 {[%clk 0:01:36]} 16... dxc2 {[%clk 0:01:52.3]} 17.
Bxc2 {[%clk 0:01:36.9]} 17... Kf7 {[%clk 0:01:50.4]} 18. O-O {[%clk 0:01:35.2]}
18... Nxd5 {[%clk 0:01:44.2]} 19. Bb3 {[%clk 0:01:34.8]} 19... c6 {[%clk
0:01:44.3]} 20. Nd2 {[%clk 0:01:34.8]} 20... Rhd8 {[%clk 0:01:41.7]} 21. Ne4
{[%clk 0:01:34.6]} 21... Be7 {[%clk 0:01:39.3]} 22. Rad1 {[%clk 0:01:30.7]}
22... Kg7 {[%clk 0:01:33.1]} 23. Bd2 {[%clk 0:01:11.2]} 23... Bb4 {[%clk
0:01:17.3]} 24. Bc1 {[%clk 0:01:05.5]} 24... Re8 {[%clk 0:01:10.7]} 25. Ng3
{[%clk 0:01:00.2]} 25... Rad8 {[%clk 0:01:02.8]} 26. Nxf5+ {[%clk 0:00:59.3]}
26... gxf5 {[%clk 0:00:41.3]} 27. Bxd5 {[%clk 0:00:58.5]} 27... cxd5 {[%clk
0:00:41]} 28. Be3 {[%clk 0:00:57.8]} 28... Re4 {[%clk 0:00:39.1]} 29. Rd3 {[%clk
0:00:51.4]} 29... d4 {[%clk 0:00:32.4]} 30. Rfd1 {[%clk 0:00:51.4]} 30... Bc5
{[%clk 0:00:32.6]} 31. Kg2 {[%clk 0:00:36.4]} 31... Rc8 {[%clk 0:00:19.9]} 32.
Bxd4 {[%clk 0:00:33]} 32... Rxf4 {[%clk 0:00:19.5]} 33. Bxc5 {[%clk 0:00:27.9]}
33... Rxc5 {[%clk 0:00:20.4]} 34. Rd7+ {[%clk 0:00:28.6]} 34... Kg6 {[%clk
0:00:20.6]} 35. Rxb7 {[%clk 0:00:25.8]} 35... Rg4+ {[%clk 0:00:20.6]} 36. Kf3
{[%clk 0:00:24.4]} 36... Rxa4 {[%clk 0:00:18.7]} 37. Rdd7 {[%clk 0:00:24.1]}
37... f4 {[%clk 0:00:18.4]} 38. Rxh7 {[%clk 0:00:21.1]} 38... Rd5 {[%clk
0:00:13]} 39. Rbg7+ {[%clk 0:00:19.2]} 39... Kf5 {[%clk 0:00:12.8]} 40. Rd7
{[%clk 0:00:16.8]} 40... Rxd7 {[%clk 0:00:09.3]} 41. Rxd7 {[%clk 0:00:17.7]}
41... Rb4 {[%clk 0:00:08.7]} 42. Rd2 {[%clk 0:00:17.6]} 42... Ke5 {[%clk
0:00:08.2]} 43. h4 {[%clk 0:00:16.6]} 43... Rb3+ {[%clk 0:00:08.6]} 44. Kg4
{[%clk 0:00:15.7]} 44... f5+ {[%clk 0:00:09]} 45. Kg5 {[%clk 0:00:15]} 45... a4
{[%clk 0:00:08.3]} 46. h5 {[%clk 0:00:14.8]} 46... Rh3 {[%clk 0:00:05.9]} 47.
Re2+ {[%clk 0:00:12.9]} 47... Kd4 {[%clk 0:00:04.1]} 48. h6 {[%clk 0:00:13.8]}
48... f3 {[%clk 0:00:04.1]} 49. Re3 {[%clk 0:00:11.4]} 49... Rh1 {[%clk
0:00:02.2]} 50. Kxf5 {[%clk 0:00:09.4]} 50... Rxh6 {[%clk 0:00:01.9]} 51. Rxf3
{[%clk 0:00:09.7]} 51... Rb6 {[%clk 0:00:02.6]} 52. Rf4+ {[%clk 0:00:08.2]}
52... Kd5 {[%clk 0:00:02.5]} 53. Rxa4 {[%clk 0:00:08.2]} 53... Rxb2 {[%clk
0:00:03.1]} 54. f4 {[%clk 0:00:08.6]} 54... Kd6 {[%clk 0:00:03.5]} 55. Ra6+
{[%clk 0:00:08.3]} 55... Ke7 {[%clk 0:00:03.8]} 56. Re6+ {[%clk 0:00:09]} 56...
Kf7 {[%clk 0:00:04.1]} 57. Re5 {[%clk 0:00:09.8]} 57... Rb6 {[%clk 0:00:04.4]}
58. Rd5 {[%clk 0:00:10]} 58... Ra6 {[%clk 0:00:04.9]} 59. Re5 {[%clk 0:00:10.5]}
59... Rb6 {[%clk 0:00:05.5]} 60. Rd5 {[%clk 0:00:11]} 60... Ra6 {[%clk
0:00:06.1]} 61. Re5 {[%clk 0:00:11.6]} 61... Rb6 {[%clk 0:00:06.7]} 1/2-1/2

[Event "Late-Titled-Tuesday-Blitz-April-23-2024"]
[Site "Chess.com"]
[Date "2024.04.23"]
[Round "3"]
[White "LikeWater"]
[Black "kylelancman"]
[Result "1-0"]
[WhiteElo "2661"]
[BlackElo "2476"]
[TimeControl "180+1"]
[EndTime "14:30:46 PDT"]
[Termination "LikeWater won by resignation"]

1. Nf3 {[%clk 0:02:57.1]} 1... c5 {[%clk 0:02:56.8]} 2. e4 {[%clk 0:02:52]} 2...
g6 {[%clk 0:02:55.7]} 3. d4 {[%clk 0:02:48.2]} 3... cxd4 {[%clk 0:02:56.6]} 4.
Qxd4 {[%clk 0:02:48.8]} 4... Nf6 {[%clk 0:02:55.9]} 5. e5 {[%clk 0:02:48]} 5...
Nc6 {[%clk 0:02:56.3]} 6. Qa4 {[%clk 0:02:34.4]} 6... Nd5 {[%clk 0:02:56.2]} 7.
Qb3 {[%clk 0:02:29.1]} 7... Nb6 {[%clk 0:02:50.1]} 8. Nc3 {[%clk 0:02:29.4]}
8... Bg7 {[%clk 0:02:48.9]} 9. Bf4 {[%clk 0:02:30.1]} 9... d5 {[%clk 0:02:41.7]}
10. exd6 {[%clk 0:02:27.4]} 10... Be6 {[%clk 0:02:39.9]} 11. Qb5 {[%clk
0:02:23.9]} 11... O-O {[%clk 0:02:33.9]} 12. O-O-O {[%clk 0:02:07.9]} 12... exd6
{[%clk 0:02:27.6]} 13. Bxd6 {[%clk 0:02:05.2]} 13... Re8 {[%clk 0:02:26.9]} 14.
Be5 {[%clk 0:01:32.1]} 14... Bh6+ {[%clk 0:02:25.8]} 15. Kb1 {[%clk 0:01:30.8]}
15... Qc8 {[%clk 0:02:20.1]} 16. Ne4 {[%clk 0:01:29.7]} 16... Nxe5 {[%clk
0:02:11.9]} 17. Nxe5 {[%clk 0:01:13.5]} 17... Bg7 {[%clk 0:01:49.9]} 18. Nd6
{[%clk 0:01:02.2]} 18... Qb8 {[%clk 0:01:19.2]} 19. Nxe8 {[%clk 0:00:39.6]}
19... Qxe5 {[%clk 0:01:16.4]} 20. Nxg7 {[%clk 0:00:37.7]} 20... Qxg7 {[%clk
0:01:13.8]} 21. Be2 {[%clk 0:00:33.2]} 21... Rc8 {[%clk 0:01:10.7]} 22. h4
{[%clk 0:00:30.4]} 22... Qf6 {[%clk 0:00:54]} 23. h5 {[%clk 0:00:24.3]} 23... a6
{[%clk 0:00:43]} 24. Qb4 {[%clk 0:00:15.5]} 24... Nd5 {[%clk 0:00:42.4]} 25. Qd2
{[%clk 0:00:13.2]} 25... g5 {[%clk 0:00:27.3]} 26. h6 {[%clk 0:00:13]} 26... Nf4
{[%clk 0:00:24]} 27. g3 {[%clk 0:00:07.5]} 27... Bf5 {[%clk 0:00:17.8]} 28. Rc1
{[%clk 0:00:05.4]} 28... Ne6 {[%clk 0:00:15.3]} 29. Bd3 {[%clk 0:00:05.2]} 29...
Bg4 {[%clk 0:00:14.7]} 30. Rhe1 {[%clk 0:00:05.2]} 30... Nd4 {[%clk 0:00:13.9]}
31. Be4 {[%clk 0:00:04.5]} 31... Be6 {[%clk 0:00:12.8]} 32. c3 {[%clk
0:00:04.2]} 32... Nb5 {[%clk 0:00:12.1]} 33. Bxb7 {[%clk 0:00:04.1]} 33... Rb8
{[%clk 0:00:10]} 34. Bxa6 {[%clk 0:00:04.4]} 34... Na3+ {[%clk 0:00:08.6]} 35.
Ka1 {[%clk 0:00:04.9]} 35... Ra8 {[%clk 0:00:04.8]} 36. bxa3 {[%clk 0:00:03.9]}
36... Rxa6 {[%clk 0:00:05.2]} 37. Qb2 {[%clk 0:00:02.9]} 37... Ra8 {[%clk
0:00:05.4]} 38. c4 {[%clk 0:00:03.5]} 38... Qxb2+ {[%clk 0:00:04.3]} 39. Kxb2
{[%clk 0:00:04.4]} 39... Rb8+ {[%clk 0:00:05.1]} 40. Kc3 {[%clk 0:00:04.7]}
40... Ra8 {[%clk 0:00:06]} 41. Kb4 {[%clk 0:00:05.2]} 41... Rb8+ {[%clk
0:00:06.5]} 42. Kc3 {[%clk 0:00:05.6]} 42... Ra8 {[%clk 0:00:07.4]} 43. Kd2
{[%clk 0:00:05.7]} 43... Rxa3 {[%clk 0:00:07.8]} 44. c5 {[%clk 0:00:06.2]} 44...
Rxa2+ {[%clk 0:00:08.2]} 45. Rc2 {[%clk 0:00:06.6]} 45... Ra8 {[%clk 0:00:09.1]}
46. c6 {[%clk 0:00:07.1]} 46... Kf8 {[%clk 0:00:09.2]} 47. c7 {[%clk 0:00:06.2]}
47... Rc8 {[%clk 0:00:08]} 48. Re5 {[%clk 0:00:05.4]} 48... g4 {[%clk
0:00:07.1]} 49. Ke3 {[%clk 0:00:04.1]} 49... Ke7 {[%clk 0:00:07]} 50. Rb5 {[%clk
0:00:04.5]} 50... Kf6 {[%clk 0:00:07.1]} 51. Rb8 {[%clk 0:00:03.2]} 51... Ke7
{[%clk 0:00:05.4]} 52. Rxc8 {[%clk 0:00:03.7]} 52... Bxc8 {[%clk 0:00:05.7]} 53.
Rd2 {[%clk 0:00:04.3]} 53... Bd7 {[%clk 0:00:04.2]} 54. Kf4 {[%clk 0:00:04.9]}
54... f6 {[%clk 0:00:03.6]} 55. Rb2 {[%clk 0:00:04.9]} 55... Bc8 {[%clk
0:00:03.4]} 56. Rd2 {[%clk 0:00:04.4]} 56... Bd7 {[%clk 0:00:03.4]} 57. Rb2
{[%clk 0:00:04.6]} 57... Bc8 {[%clk 0:00:03.2]} 58. Rb6 {[%clk 0:00:05.2]} 58...
Bd7 {[%clk 0:00:03.3]} 59. Rb8 {[%clk 0:00:05.2]} 1-0

[Event "Late-Titled-Tuesday-Blitz-April-23-2024"]
[Site "Chess.com"]
[Date "2024.04.23"]
[Round "3"]
[White "NovakRatko"]
[Black "RobertJFischer71"]
[Result "0-1"]
[WhiteElo "2388"]
[BlackElo "2598"]
[TimeControl "180+1"]
[EndTime "14:30:49 PDT"]
[Termination "RobertJFischer71 won by checkmate"]

1. d4 {[%clk 0:02:59.4]} 1... d5 {[%clk 0:03:00.1]} 2. c4 {[%clk 0:02:59.4]}
2... c6 {[%clk 0:03:00.8]} 3. cxd5 {[%clk 0:02:59.9]} 3... cxd5 {[%clk
0:03:01.7]} 4. Nc3 {[%clk 0:03:00.7]} 4... Nf6 {[%clk 0:03:02.4]} 5. f3 {[%clk
0:03:01]} 5... Nc6 {[%clk 0:03:02.7]} 6. e4 {[%clk 0:03:01.3]} 6... e6 {[%clk
0:02:58]} 7. e5 {[%clk 0:03:01.2]} 7... Ng8 {[%clk 0:02:55.9]} 8. f4 {[%clk
0:03:01.5]} 8... Bb4 {[%clk 0:02:53.5]} 9. Nf3 {[%clk 0:03:01.4]} 9... Nge7
{[%clk 0:02:52.2]} 10. Bd3 {[%clk 0:03:01.4]} 10... h5 {[%clk 0:02:47.9]} 11.
Be3 {[%clk 0:03:01.2]} 11... Nf5 {[%clk 0:02:46.8]} 12. Bxf5 {[%clk 0:02:59.7]}
12... exf5 {[%clk 0:02:47.7]} 13. O-O {[%clk 0:02:59.5]} 13... Be6 {[%clk
0:02:47.6]} 14. a3 {[%clk 0:02:55.5]} 14... Bxc3 {[%clk 0:02:47.6]} 15. bxc3
{[%clk 0:02:55.3]} 15... O-O {[%clk 0:02:44]} 16. Rb1 {[%clk 0:02:53.6]} 16...
b6 {[%clk 0:02:43.6]} 17. Ng5 {[%clk 0:02:53.4]} 17... g6 {[%clk 0:02:43.1]} 18.
h3 {[%clk 0:02:50.8]} 18... Rc8 {[%clk 0:02:36.3]} 19. g4 {[%clk 0:02:49.6]}
19... hxg4 {[%clk 0:02:35.7]} 20. Nxe6 {[%clk 0:02:49.7]} 20... fxe6 {[%clk
0:02:35.6]} 21. hxg4 {[%clk 0:02:49.3]} 21... Qh4 {[%clk 0:02:31.3]} 22. Rf2
{[%clk 0:02:38.5]} 22... Qxg4+ {[%clk 0:02:24.8]} 23. Qxg4 {[%clk 0:02:36.4]}
23... fxg4 {[%clk 0:02:25.7]} 24. Rg2 {[%clk 0:02:36.5]} 24... Na5 {[%clk
0:02:25.9]} 25. Rxg4 {[%clk 0:02:36.2]} 25... Rxc3 {[%clk 0:02:24.3]} 26. Rxg6+
{[%clk 0:02:34.8]} 26... Kf7 {[%clk 0:02:24]} 27. Rg3 {[%clk 0:02:34.6]} 27...
Rg8 {[%clk 0:02:24.4]} 28. Rxg8 {[%clk 0:02:33]} 28... Kxg8 {[%clk 0:02:25.3]}
29. Kf2 {[%clk 0:02:33]} 29... Rxa3 {[%clk 0:02:24.6]} 30. Rg1+ {[%clk 0:02:25]}
30... Kf7 {[%clk 0:02:24.4]} 31. f5 {[%clk 0:02:22.3]} 31... exf5 {[%clk
0:02:22.7]} 32. Rg5 {[%clk 0:02:22.4]} 32... f4 {[%clk 0:01:28.6]} 33. Bxf4
{[%clk 0:02:15.7]} 33... Nc6 {[%clk 0:01:28.2]} 34. Rf5+ {[%clk 0:02:11.7]}
34... Ke8 {[%clk 0:01:28.8]} 35. Be3 {[%clk 0:02:10.1]} 35... Rd3 {[%clk
0:01:26.3]} 36. e6 {[%clk 0:02:07.6]} 36... Ke7 {[%clk 0:01:06]} 37. Rxd5 {[%clk
0:01:40.3]} 37... Kxe6 {[%clk 0:01:06.2]} 38. Rh5 {[%clk 0:01:36.9]} 38... Nxd4
{[%clk 0:01:04.1]} 39. Rh6+ {[%clk 0:01:37]} 39... Kd5 {[%clk 0:01:03.4]} 40.
Rh5+ {[%clk 0:01:30.5]} 40... Kc4 {[%clk 0:01:03]} 41. Rh7 {[%clk 0:01:24]}
41... a5 {[%clk 0:01:02.8]} 42. Rc7+ {[%clk 0:01:24]} 42... Kd5 {[%clk
0:00:51.8]} 43. Rd7+ {[%clk 0:01:22.1]} 43... Ke5 {[%clk 0:00:51.2]} 44. Rb7
{[%clk 0:01:00.1]} 44... Rb3 {[%clk 0:00:44.7]} 45. Rb8 {[%clk 0:00:50.3]} 45...
a4 {[%clk 0:00:36.9]} 46. Re8+ {[%clk 0:00:50]} 46... Ne6 {[%clk 0:00:37.2]} 47.
Ra8 {[%clk 0:00:42.2]} 47... b5 {[%clk 0:00:35.4]} 48. Ke2 {[%clk 0:00:36.4]}
48... Ke4 {[%clk 0:00:33.8]} 49. Bd2 {[%clk 0:00:22.6]} 49... Nd4+ {[%clk
0:00:32.8]} 50. Kd1 {[%clk 0:00:12.3]} 50... Rb1+ {[%clk 0:00:25.8]} 51. Bc1
{[%clk 0:00:11.8]} 51... Nb3 {[%clk 0:00:26.3]} 52. Re8+ {[%clk 0:00:10.5]}
52... Kd5 {[%clk 0:00:26.3]} 53. Rd8+ {[%clk 0:00:10.7]} 53... Ke6 {[%clk
0:00:26.5]} 54. Re8+ {[%clk 0:00:04.6]} 54... Kd7 {[%clk 0:00:26.2]} 55. Rb8
{[%clk 0:00:05.5]} 55... Rxc1+ {[%clk 0:00:26.2]} 56. Ke2 {[%clk 0:00:05.6]}
56... Rc5 {[%clk 0:00:26.7]} 57. Kd3 {[%clk 0:00:04.8]} 57... Kc7 {[%clk
0:00:22.3]} 58. Rg8 {[%clk 0:00:01.1]} 58... Kb6 {[%clk 0:00:22.6]} 59. Rg7
{[%clk 0:00:01.4]} 59... Ka5 {[%clk 0:00:22.5]} 60. Rg6 {[%clk 0:00:02.1]} 60...
Kb4 {[%clk 0:00:23]} 61. Rg1 {[%clk 0:00:03]} 61... Rc4 {[%clk 0:00:23.3]} 62.
Rb1 {[%clk 0:00:03.3]} 62... a3 {[%clk 0:00:21.8]} 63. Rf1 {[%clk 0:00:04.2]}
63... a2 {[%clk 0:00:22]} 64. Rf6 {[%clk 0:00:04.5]} 64... a1=Q {[%clk
0:00:21.3]} 65. Rb6 {[%clk 0:00:05.4]} 65... Qd4+ {[%clk 0:00:21.4]} 66. Ke2
{[%clk 0:00:04.7]} 66... Rc2+ {[%clk 0:00:22.3]} 67. Ke1 {[%clk 0:00:04.5]}
67... Qf2+ {[%clk 0:00:21.4]} 68. Kd1 {[%clk 0:00:04.4]} 68... Qe2# {[%clk
0:00:22.3]} 0-1